{"text_format":"1","workbook":"xlsx","n_sheets":2,"sheets":["Profilo chiusura - Scossalina","Unità misura e prezzi"],"not_rendered":{"charts":0,"images":1,"macros":1,"external_links":0,"defined_names":6,"comments":0,"pivot_tables":0},"unopened":[],"bounds":{"document_bytes":16777216,"sheet_cells":100000,"rows_first":2000,"rows_last":500,"rows_between":2000,"halvings":0,"cell_chars":16384,"cell_head_chars":4096},"cells_cut":0,"cells_raw":0,"read":"whole","date_system":"1900"}

{"sheet":"Profilo chiusura - Scossalina","index":0,"n_rows":33,"n_cols":18,"rows_kept":33,"cut":false,"hidden":false,"merged":[[0,1,2,6],[31,0,31,6],[32,0,32,6],[29,3,29,5],[29,1,29,2],[16,0,16,2],[15,0,15,2],[17,0,17,2],[14,0,14,2],[7,0,12,6],[3,0,3,3],[3,6,6,6],[3,4,3,5],[15,11,15,13],[16,11,16,13],[28,0,28,6],[21,0,21,2],[18,0,18,2],[17,11,17,13]]}
[null,"Applicazione di profilo in alluminio di chiusura di sistemi termocoibenti"]
[]
[]
[]
["Elemento","Tipologia"]
["Profilo di chiusura","160x2500 mm"]
[]
[{"$f":"_xlfn.CONCAT('Unità misura e prezzi'!$H$4,'Unità misura e prezzi'!$I$4,'Unità misura e prezzi'!$J$4,'Unità misura e prezzi'!$K$4)","v":"Fornitura e posa in opera di profilo in alluminio preverniciato di protezione di sistemi termoisolanti - tipo Profilo di chiusura di Kerakoll.\nIl prezzo è per metro lineare di profilo effettivamente posto in opera. E' altresì compresa la fornitura e posa in opera di tutti i materiali sopra descritti e quanto altro occorre per dare il lavoro finito. Sono esclusi: la preparazione del supporto, il materiale per la tassellatura mediante appositi tasselli da valutarsi in ragione della tipologia di supporto; eventuale materiale per la sigillatura; le indagini pre e post intervento; tutti i sussidi necessari per l'esecuzione dei lavori ricadenti all'interno dei costi della sicurezza indiretti."}]
[]
[]
[]
[]
[]
["DESCRIZIONE",null,null,"U.M.","QUANTITA'","PREZZO UNITARIO*","PREZZO COMPLETO"]
["RISORSE UMANE (RU) "]
["Tassellatura del profilo",null,null,null,null,null,null,null,"OPERAIO QUALIFICATO (MO1003)",null,null,{"$f":"INDEX(lavorazioni_secondostrato,(VLOOKUP($B$1,lavorazioni_secondostrato,2,FALSE)+1),3)","v":{"$error":"#NAME?"}}]
[{"$f":"IF(A16=0,\"\",$I$16)","v":"OPERAIO QUALIFICATO (MO1003)"},null,null,{"$f":"IFERROR(VLOOKUP(A17,PRZ,3,FALSE),\"\")","v":"H/mq"},0.08,{"$f":"IFERROR(VLOOKUP(A17,PRZ,4,FALSE),\"\")","v":29.25},{"$f":"IFERROR(E17*F17,\"\")","v":2.34},null,null,null,null,{"$f":"IF(L16=0,\"\",$I$16)","v":{"$error":"#NAME?"}},null,null,{"$f":"IFERROR(VLOOKUP(L17,prezzi,2,FALSE),\"\")","v":""},{"$f":"IF(L17=$I$16,VLOOKUP(L16,#REF!,2,FALSE),IF(L17=$I$17,VLOOKUP(L15,#REF!,2,FALSE),\"\"))","v":{"$error":"#NAME?"}},{"$f":"IFERROR(VLOOKUP(L17,prezzi,3,FALSE),\"\")","v":""},{"$f":"IFERROR(P17*Q17,\"\")","v":""}]
[null,null,null,{"$f":"IFERROR(VLOOKUP(A18,prezzi,2,FALSE),\"\")","v":""},{"$f":"IF(A18=$I$16,VLOOKUP(#REF!,QTA,2,FALSE),\"\")","v":""},"sommano RU",{"$f":"SUM(G17:G17)","v":2.34},null,null,null,null,null,null,null,"",{"$f":"IF(L18=$I$16,VLOOKUP(#REF!,#REF!,2,FALSE),IF(L18=$I$17,VLOOKUP(#REF!,#REF!,2,FALSE),\"\"))","v":{"$error":"#REF!"}},"sommano RU",{"$f":"SUM(R17:R17)","v":0}]
["PRODOTTI DA COSTRUZIONE (PR) ",null,null,{"$f":"IFERROR(VLOOKUP(A19,prezzi,2,FALSE),\"\")","v":""}]
[{"$f":"A6","v":"Profilo di chiusura"},{"$f":"B6","v":"160x2500 mm"},null,"m/m",1,{"$f":"IFERROR(VLOOKUP(_xlfn.CONCAT(A20,B20),'Unità misura e prezzi'!C5:E21,3,FALSE),\"\")","v":22.123999999999999},{"$f":" IFERROR(F20*E20,\"\")","v":22.123999999999999}]
[null,null,null,"",null,"sommano PR",{"$f":"SUM(G20:G20)","v":22.123999999999999}]
["ATTREZZATURE (AT) "]
["NOLO DI STRUMENTAZIONE DA CANTIERE",null,null,"H/m",0.01,8,{"$f":" F23*E23","v":0.08}]
["TRASPORTO MATERIALI DI CONSUMO",null,null,"kg/m",{"$f":"0.1","v":0.1},{"$f":"0.02","v":0.02},{"$f":" F24*E24","v":2E-3}]
[null,null,null,null,null,"sommano AT",{"$f":"SUM(G23:G24)","v":8.2000000000000003E-2}]
[null,null,null,null,null,"Costo Tecnico (CT)",{"$f":"SUM(G25,G21,G18)","v":24.545999999999999}]
[null,null,null,null,null,"Costo indiretto (SG) 17,00%",{"$f":"G26*0.17","v":4.1728199999999998}]
[null,null,null,null,null,"Costo figurativo (U) 10,00%",{"$f":"(G26+G27)*0.1","v":2.8718820000000003}]
["* Prezzi materiali Kerakoll = Listino 07-2025. Prezzi manodopera = Prezziario DEI (I Semestre 2025) - Media Nazionale."]
[null,"RU+PR+AT+SG+U",null," PREZZO COMPLESSIVO AL METRO",null,null,{"$f":"G26+G27+G28","v":31.590702}]
[]
["Voce di capitolato "]
[{"$f":"_xlfn.CONCAT('Unità misura e prezzi'!H4,'Unità misura e prezzi'!I4,'Unità misura e prezzi'!J4,'Unità misura e prezzi'!L4)","v":"Fornitura e posa in opera di profilo in alluminio preverniciato di protezione di sistemi termoisolanti - tipo Profilo di chiusura di Kerakoll.\nL'intervento si svolge nelle seguenti fasi: \na) Tassellatura dell'elemento preforato al supporto mediante appositi tasselli da muro (materiale per la tassellatura da contabilizzare a parte)\nb) Incollaggio dei pannelli isolanti al supporto (materiale e lavorazione da contabilizzare a parte) \nc) Eventuale sigillatura a seguito delle lavorazioni di finitura del sistema termocoibente (da contabilizzare a parte)\nLa valutazione è espressa per metro lineare di profilo effettivamente posto in opera."}]

{"sheet":"Unità misura e prezzi","index":1,"n_rows":32,"n_cols":12,"rows_kept":32,"cut":false,"hidden":true,"merged":[]}
[]
[null,"Prodotto ",null,"UM","Prezzo"]
[null,"OPERAIO QUALIFICATO (MO1003)",null,"H/mq",29.25,null,null,"Voce"]
[null,"Profilo di chiusura",null,"m/m",null,"profilo di chiusura verticale in alluminio preverniciato per delimitare i sistemi termocoibenti privi di contorni verticali",null,"Fornitura e posa in opera di profilo in alluminio preverniciato di protezione di sistemi termoisolanti - tipo ",{"$f":"'Profilo chiusura - Scossalina'!A6","v":"Profilo di chiusura"}," di Kerakoll.\n","Il prezzo è per metro lineare di profilo effettivamente posto in opera. E' altresì compresa la fornitura e posa in opera di tutti i materiali sopra descritti e quanto altro occorre per dare il lavoro finito. Sono esclusi: la preparazione del supporto, il materiale per la tassellatura mediante appositi tasselli da valutarsi in ragione della tipologia di supporto; eventuale materiale per la sigillatura; le indagini pre e post intervento; tutti i sussidi necessari per l'esecuzione dei lavori ricadenti all'interno dei costi della sicurezza indiretti.","L'intervento si svolge nelle seguenti fasi: \na) Tassellatura dell'elemento preforato al supporto mediante appositi tasselli da muro (materiale per la tassellatura da contabilizzare a parte)\nb) Incollaggio dei pannelli isolanti al supporto (materiale e lavorazione da contabilizzare a parte) \nc) Eventuale sigillatura a seguito delle lavorazioni di finitura del sistema termocoibente (da contabilizzare a parte)\nLa valutazione è espressa per metro lineare di profilo effettivamente posto in opera."]
["Profilo di chiusura","30X2500 mm",{"$f":"_xlfn.CONCAT(A5:B5)","v":"Profilo di chiusura30X2500 mm"},"m/m",9.5180000000000007]
["Profilo di chiusura","40x2500 mm",{"$f":"_xlfn.CONCAT(A6:B6)","v":"Profilo di chiusura40x2500 mm"},"m/m",9.9139999999999997]
["Profilo di chiusura","50x2500 mm","Profilo di chiusura50x2500 mm","m/m",10.917]
["Profilo di chiusura","60x2500 mm","Profilo di chiusura60x2500 mm","m/m",11.54]
["Profilo di chiusura","70x2500 mm","Profilo di chiusura70x2500 mm","m/m",12.606]
["Profilo di chiusura","80x2500 mm","Profilo di chiusura80x2500 mm","m/m",13.506]
["Profilo di chiusura","100x2500 mm","Profilo di chiusura100x2500 mm","m/m",15.518000000000001]
["Profilo di chiusura","120x2500 mm","Profilo di chiusura120x2500 mm","m/m",17.600000000000001]
["Profilo di chiusura","140x2500 mm","Profilo di chiusura140x2500 mm","m/m",19.684000000000001]
["Profilo di chiusura","160x2500 mm","Profilo di chiusura160x2500 mm","m/m",22.123999999999999]
[null,"Scossalina con gocciolatoio",null,null,null,"Profilo in alluminio preverniciato preforato di chiusura superiore di sistemi termocoibenti"]
["Scossalina con gocciolatoio","50x2500 mm","Scossalina con gocciolatoio50x2500 mm","m/m",10.625999999999999]
["Scossalina con gocciolatoio","80x2500 mm","Scossalina con gocciolatoio80x2500 mm","m/m",16.687999999999999]
["Scossalina con gocciolatoio","100x2500 mm","Scossalina con gocciolatoio100x2500 mm","m/m",17.238]
["Scossalina con gocciolatoio","120x2500 mm","Scossalina con gocciolatoio120x2500 mm","m/m",20.73]
["Scossalina con gocciolatoio","140x2500 mm","Scossalina con gocciolatoio140x2500 mm","m/m",23.015999999999998]
["Scossalina con gocciolatoio","160x2500 mm","Scossalina con gocciolatoio160x2500 mm","m/m",26.16]
[]
[null,"Profilo di chiusura",null,"PRO",null,null,{"$f":"INDIRECT(VLOOKUP('Profilo chiusura - Scossalina'!$A$6,'Unità misura e prezzi'!$B$23:$D$24,3,FALSE))","v":"30X2500 mm"}]
[null,"Scossalina con gocciolatoio",null,"SCO",null,null,"40x2500 mm"]
[null,null,null,null,null,null,"50x2500 mm"]
[null,null,null,null,null,null,"60x2500 mm"]
[null,null,null,null,null,null,"70x2500 mm"]
[null,null,null,null,null,null,"80x2500 mm"]
[null,null,null,null,null,null,"100x2500 mm"]
[null,null,null,null,null,null,"120x2500 mm"]
[null,null,null,null,null,null,"140x2500 mm"]
[null,null,null,null,null,null,"160x2500 mm"]